bitfinex/quotes_SOLUSD_20241222
["timestamp","ask_amount","ask_price","bid_price","bid_amount"]
[1734831441129,0.6761776,182.38,182.33,30.33196521]
[1734831441635,0.6761776,182.38,182.32,31.15444353]
[1734831441800,0.6761776,182.38,182.32,0.82247832]
[1734831442004,0.6761776,182.38,182.31,30.33196521]
[1734831442206,0.6761776,182.38,182.32,31.15443858]
[1734831443296,0.6761776,182.38,182.28,30.33196521]
[1734831443513,0.74734837,182.37,182.25,30.33196521]
[1734831443721,3.48894837,182.37,182.24,31.15454977]
[1734831444097,23.48894837,182.37,182.26,30.33196521]
[1734831444299,23.48894837,182.37,182.24,31.15454977]
[1734831444600,3.48894837,182.37,182.24,31.15454977]
[1734831444796,3.48894837,182.37,182.23,30.33196521]
[1734831445220,26.0665,182.33,182.22,30.33196521]
[1734831445396,23.48974837,182.32,182.19,31.15489088]
[1734831445601,20.0,182.3,182.19,31.15489088]
[1734831445812,0.74734837,182.29,182.19,31.15489088]
[1734831446123,0.74734837,182.29,182.2,30.33196521]
[1734831446425,3.49014837,182.29,182.16,30.33196521]
[1734831446933,3.49014837,182.29,182.17,30.33196521]
[1734831447295,23.776884,182.28,182.17,30.33196521]
[1734831447502,20.0,182.25,182.15,30.33196521]
[1734831447701,0.74734837,182.24,182.15,30.33196521]
[1734831448414,0.74734837,182.26,182.15,30.33196521]
[1734831448610,20.0,182.24,182.13,30.33196521]
[1734831448825,0.74734837,182.23,182.12,30.33196521]
[1734831449030,20.0,182.19,182.1,30.33196521]
[1734831449219,0.74734837,182.18,182.09,30.33196521]
[1734831449828,0.74734837,182.18,182.07,30.33196521]
[1734831450003,0.74734837,182.18,182.08,30.33196521]
[1734831450202,0.11133754,182.1,182.08,30.33196521]
[1734831450421,0.11133754,182.1,182.09,0.82349897]
[1734831450921,0.11133754,182.1,182.09,30.33196521]
[1734831452021,0.11133754,182.1,182.09,54.10884921]
[1734831454208,0.11133754,182.1,182.09,30.33196521]
[1734831456521,0.11133754,182.1,182.07,30.33196521]
[1734831456723,0.11133754,182.1,182.05,30.33196521]
[1734831456923,0.11133754,182.1,182.06,0.82371308]
[1734831457123,0.11133754,182.1,182.07,30.33196521]
[1734831457304,0.11133754,182.1,182.08,0.82358195]
[1734831457506,0.11133754,182.1,182.07,30.33196521]
[1734831459938,0.11133754,182.1,182.08,0.82363977]
[1734831460627,0.11133754,182.1,182.07,30.33196521]
[1734831460829,0.11133754,182.1,182.08,0.82359271]
[1734831461008,0.11133754,182.1,182.07,30.33196521]
[1734831461342,0.11133754,182.1,182.05,30.33196521]
[1734831461549,0.11133754,182.1,182.06,0.82370328]
[1734831461919,0.11133754,182.1,182.01,30.33196521]
[1734831462122,0.11133754,182.1,182.02,0.82387547]
[1734831462452,22.7458,182.09,182.01,30.33196521]
[1734831462655,0.74734837,182.08,182.0,0.82385605]
[1734831462952,0.74734837,182.08,181.99,30.33196521]
[1734831463345,0.11133754,182.1,181.95,2.43836517]
[1734831463346,0.11133754,182.1,182.01,30.33196521]
[1734831463513,0.11133754,182.1,182.03,30.33196521]
[1734831463715,0.11133754,182.1,182.04,0.82373585]
[1734831464444,0.11133754,182.1,182.03,30.33196521]
[1734831464749,0.11133754,182.1,182.04,31.15576311]
[1734831464912,0.11133754,182.1,182.06,30.33196521]
[1734831465120,0.11133754,182.1,182.08,30.33196521]
[1734831465455,0.11133754,182.1,182.09,31.15548721]
[1734831467945,0.11133754,182.1,182.09,54.93237121]
[1734831468348,0.11133754,182.1,182.09,31.15548721]
[1734831469442,2.26384837,182.18,182.09,31.15548721]
[1734831470225,0.12032503,182.1,182.09,31.15548721]
[1734831471548,0.12032503,182.1,182.09,54.93237121]
[1734831472863,0.12032503,182.1,182.09,57.1817982]
[1734831473162,0.12032503,182.1,182.09,31.15548721]
[1734831473539,0.12032503,182.1,182.09,0.823522]
[1734831473735,0.12032503,182.1,182.08,0.82357073]
[1734831476665,0.12032503,182.1,182.05,30.33196521]
[1734831476961,0.12032503,182.1,182.02,31.15556747]
[1734831477163,0.8676734,182.1,182.02,31.15556747]
[1734831477338,0.8676734,182.1,182.02,0.82360226]
[1734831478961,0.8676734,182.1,182.02,31.15556747]
[1734831479265,0.12032503,182.1,182.04,30.33196521]
[1734831479450,0.12032503,182.1,182.05,0.82372965]
[1734831481263,0.12032503,182.1,182.06,30.33196521]
[1734831481457,0.12032503,182.1,182.07,0.82357388]
[1734831481781,0.12032503,182.1,182.04,30.33196521]
[1734831481953,0.12032503,182.1,182.05,0.82367517]
[1734831482149,0.12032503,182.1,182.05,31.15564038]
[1734831482352,0.12032503,182.1,182.06,30.33196521]
[1734831482571,0.12032503,182.1,182.07,0.82355371]
[1734831482966,0.12032503,182.1,182.05,30.33196521]
[1734831483157,0.12032503,182.1,182.02,30.33196521]
[1734831483479,0.12032503,182.1,181.97,22.04430299]
[1734831483480,0.8676734,182.1,181.98,31.15578558]
[1734831483664,1.6476,182.09,181.98,31.15578558]
[1734831483976,20.0,182.04,181.95,31.1558993]
[1734831484152,20.0,182.02,181.95,0.82393409]
[1734831484658,20.0,182.02,181.94,31.15611316]
[1734831485255,20.74734837,182.02,181.94,31.15611316]
[1734831485587,20.74734837,182.02,181.89,30.33196521]
[1734831485588,2.7471,182.01,181.89,30.33196521]
[1734831485894,0.74734837,182.0,181.89,30.33196521]
[1734831486562,20.0,182.02,181.94,30.33196521]
[1734831486765,20.0,182.02,181.95,0.82414526]
[1734831487249,20.0,182.02,181.95,31.15611047]
[1734831487667,20.0,182.02,181.95,0.82414526]
[1734831488078,0.74734837,182.01,181.92,30.33196521]
[1734831488390,0.74734837,182.01,181.93,31.15623987]
[1734831488578,20.0,182.02,181.94,30.33196521]
[1734831488771,20.0,182.02,181.95,0.82409005]
[1734831489079,0.74734837,182.01,181.92,30.33196521]
[1734831489384,0.74734837,182.01,181.91,30.33196521]
[1734831490282,0.10650884,181.92,181.91,30.33196521]
[1734831491168,0.10650884,181.92,181.91,54.10884921]
[1734831491371,0.10650884,181.92,181.91,65.63282601]
[1734831491372,8.84e-06,181.92,181.91,65.63282601]
[1734831492091,0.1156129,181.94,181.92,37.519184]
[1734831492252,0.1156129,181.94,181.93,54.9327568]
[1734831492858,0.1156129,181.94,181.93,31.1558728]
[1734831493368,0.1156129,181.94,181.93,54.9327568]
[1734831493766,0.00527121,181.98,181.96,6.4613]
[1734831493961,6.2725,182.09,181.97,31.15574323]
[1734831494164,2.7454,182.12,181.99,30.33196521]
[1734831494487,1.5292,182.13,181.99,54.93250062]
[1734831494870,1.5292,182.13,181.99,68.66950062]
[1734831495459,2.27654837,182.13,181.99,68.66950062]
[1734831495682,1.5292,182.13,181.99,68.66950062]
[1734831498191,20.0,182.1,181.99,31.15561662]
[1734831498480,1.5292,182.13,181.99,54.93250062]
[1734831498684,5.34e-05,182.0,181.99,65.63250062]
[1734831498854,1.5292,182.18,182.02,1.5444]
[1734831499058,2.7441,182.21,182.02,1.5444]
[1734831499059,7.8017,182.23,182.16,30.33196521]
[1734831499287,7.8017,182.23,182.15,30.33196521]
[1734831499482,0.74734837,182.22,182.12,30.33196521]
[1734831499683,0.74734837,182.22,182.13,31.15526836]
[1734831499892,7.8017,182.23,182.13,31.15526836]
[1734831500590,7.8017,182.23,182.14,30.33196521]
[1734831500803,7.8017,182.23,182.15,31.15515876]
[1734831500958,7.8017,182.23,182.16,30.33196521]
[1734831501161,6.2725,182.27,182.17,31.15506086]
[1734831501587,0.74734837,182.26,182.17,31.15506086]
[1734831501785,0.74734837,182.26,182.17,0.82309565]
[1734831502373,20.0,182.24,182.17,0.82309565]
[1734831502675,0.74734837,182.23,182.12,30.33196521]
[1734831502996,2.7439,182.22,182.13,0.82328953]
[1734831503188,0.74734837,182.21,182.08,31.15524809]
[1734831503495,0.74734837,182.21,182.09,30.33196521]
[1734831504175,0.74734837,182.21,182.1,31.15541963]
[1734831504573,0.74734837,182.21,182.11,30.33196521]
[1734831504771,3.49074837,182.26,182.14,30.33196521]
[1734831504983,3.49074837,182.26,182.15,0.82324574]
[1734831505198,3.49074837,182.26,182.08,31.15508092]
[1734831505384,9.71605925,182.26,182.08,31.15508092]
[1734831505698,7.75451088,182.25,182.08,30.33196521]
[1734831505903,0.74734837,182.24,182.08,30.33196521]
[1734831506204,20.0,182.18,182.08,30.33196521]
[1734831506672,0.74734837,182.17,182.08,30.33196521]
[1734831507081,0.74734837,182.17,182.05,0.82351862]
[1734831507082,20.0,182.14,182.05,0.82351862]
[1734831507370,20.0,182.14,182.06,30.33196521]
[1734831508174,20.0,182.14,182.05,31.15554955]
[1734831508379,20.0,182.14,182.06,30.33196521]
[1734831508691,20.0,182.14,182.06,31.15552999]
[1734831509481,20.0,182.13,182.06,30.33196521]
[1734831510300,0.1037229,182.07,182.04,30.33196521]
[1734831510596,0.1037229,182.07,182.02,51.15573183]
[1734831511481,0.1037229,182.07,182.02,31.15573183]
[1734831511684,0.1037229,182.07,182.02,0.82376662]
[1734831511992,0.1037229,182.07,182.01,31.15585508]
[1734831512178,0.1037229,182.07,182.02,30.33196521]
[1734831512382,0.1037229,182.07,182.03,0.82377499]
[1734831513987,0.1037229,182.07,181.99,30.33196521]
[1734831514188,6.6029229,182.07,182.0,0.82394533]
[1734831514395,6.6029229,182.07,182.0,31.15591054]
[1734831514782,0.74734837,182.06,181.97,30.33196521]
[1734831515389,20.0,182.04,181.96,30.33196521]
[1734831515600,20.74734837,182.04,181.95,0.82389985]
[1734831515989,20.74734837,182.04,181.95,31.15586506]
[1734831516189,2.7467,182.03,181.95,0.82389985]
[1734831516389,3.49404837,182.03,181.95,0.82389985]
[1734831516904,20.0,182.04,181.96,30.33196521]
[1734831517085,20.0,182.03,181.96,31.15601474]
[1734831517286,20.0,182.03,181.96,30.33196521]
[1734831517805,20.0,182.03,181.94,30.33196521]
[1734831518109,20.0,182.03,181.95,0.8241209]
[1734831519603,20.74734837,182.04,181.95,0.8241209]
[1734831519805,0.74734837,182.02,181.94,31.15616549]
[1734831520891,0.74734837,182.03,181.94,30.33196521]
[1734831521290,22.7467,182.04,181.95,0.82417293]
[1734831521494,0.74734837,182.03,181.95,0.82417293]
[1734831521700,1.598,182.05,181.97,30.33196521]
[1734831521905,1.598,182.05,181.98,0.82395607]
[1734831522317,1.598,182.05,181.97,30.33196521]
[1734831522507,1.598,182.05,181.96,30.33196521]
[1734831522705,1.598,182.05,181.97,31.15603049]
[1734831523207,0.74734837,182.04,181.95,30.33196521]
[1734831523404,23.49394837,182.04,181.95,30.33196521]
[1734831524509,43.776884,182.02,181.9,0.82402063]
[1734831524713,20.0,181.97,181.86,31.1561439]
[1734831524909,0.74734837,181.96,181.86,31.1561439]
[1734831525295,0.74734837,181.96,181.87,30.33196521]
[1734831525608,6.4992,182.01,181.93,30.33196521]
[1734831525811,6.4992,182.01,181.94,0.82420124]
[1734831526113,6.4864,182.06,181.96,30.33196521]
[1734831526288,7.23374837,182.06,181.97,0.82401693]
[1734831526493,2.34534837,182.05,181.97,0.82401693]
[1734831526694,1.598,182.05,181.97,31.15598214]
[1734831527016,1.598,182.05,181.98,30.33196521]
[1734831527224,1.598,182.05,181.99,0.82396489]
[1734831527618,6.4864,182.06,181.99,0.82396489]
[1734831529310,0.1037229,182.07,182.0,30.33196521]
[1734831529513,1.5165,182.09,182.01,31.15576839]
[1734831530201,0.11555056,182.02,182.01,31.15576839]
[1734831530900,0.11555056,182.02,182.01,54.93265239]
[1734831533227,0.11555056,182.02,182.01,31.15576839]
[1734831533521,0.11555056,182.02,182.01,0.82380318]
[1734831535001,0.11555056,182.02,182.0,0.82394075]
[1734831535919,0.11555056,182.02,181.98,0.82394379]
[1734831536110,0.11555056,182.02,182.01,30.33196521]
[1734831536504,0.11555056,182.02,182.01,54.10884921]
[1734831536695,0.11555056,182.02,182.01,60.20444921]
[1734831537023,0.11555056,182.02,182.01,73.93994921]
[1734831537390,0.11555056,182.02,182.01,60.20444921]
[1734831537595,0.11555056,182.02,182.01,36.42756521]
[1734831538511,0.11555056,182.02,182.01,30.33196521]
[1734831540096,0.11555056,182.02,182.01,54.10884921]
[1734831540297,0.11555056,182.02,182.01,54.9324875]
[1734831542399,0.11555056,182.02,182.01,31.1556035]
[1734831542899,0.11555056,182.02,182.01,30.33196521]
[1734831543909,0.11555056,182.02,181.99,30.33196521]
[1734831544107,0.11555056,182.02,182.0,0.82386386]
[1734831544322,0.11555056,182.02,182.01,30.33196521]
[1734831545217,0.11555056,182.02,182.01,31.15568566]
[1734831546119,0.11555056,182.02,182.01,30.33196521]
[1734831546624,0.11555056,182.02,181.99,0.82372715]
[1734831546799,0.11555056,182.02,181.95,30.33196521]
[1734831546997,0.11555056,182.02,181.96,0.82411364]
[1734831547231,22.7471,182.01,181.91,30.33196521]
[1734831547523,0.74734837,182.0,181.9,31.15626405]
[1734831547697,20.74734837,182.0,181.88,3.02348828]
[1734831547902,20.0,181.94,181.83,38.62895681]
[1734831548107,3.49574837,181.93,181.83,8.2969916]
[1734831548446,3.49574837,181.93,181.82,30.33196521]
[1734831548619,20.0,181.89,181.78,30.33196521]
[1734831548924,6.2624,181.91,181.77,31.15664997]
[1734831548925,20.74734837,181.88,181.77,31.15664997]
[1734831549099,1.5558,181.87,181.76,30.33196521]
[1734831549302,2.30314837,181.87,181.78,30.33196521]
[1734831549506,6.2624,181.96,181.85,30.33196521]
[1734831549710,6.2624,181.96,181.88,30.33196521]
[1734831549916,6.2624,181.96,181.89,30.33196521]
[1734831550117,0.1089832,181.89,181.88,30.33196521]
[1734831550315,0.1089832,181.89,181.87,30.33196521]
[1734831550525,0.1089832,181.89,181.88,31.15641862]
[1734831554702,0.1089832,181.89,181.88,54.93330262]
[1734831556621,0.1089832,181.89,181.88,67.86439112]
[1734831557122,8.32e-05,181.89,181.88,67.86439112]
[1734831557328,2.327e-05,181.91,181.89,37.521384]
[1734831557503,0.1133718,181.92,181.89,37.521384]
[1734831557504,9.507e-05,181.92,181.9,31.15586921]
[1734831557705,9.507e-05,181.92,181.91,23.776884]
[1734831558031,9.507e-05,181.92,181.91,54.10884921]
[1734831558797,9.507e-05,181.92,181.91,30.33196521]
[1734831559004,9.507e-05,181.92,181.91,31.15616636]
[1734831560122,9.507e-05,181.92,181.91,54.93305036]
[1734831560722,2.37e-05,181.93,181.91,65.63305036]
[1734831560938,2.37e-05,181.93,181.92,44.098184]
[1734831561809,2.37e-05,181.93,181.92,60.68784921]
[1734831562011,2.37e-05,181.93,181.92,31.15601246]
[1734831562926,2.37e-05,181.93,181.92,30.33196521]
[1734831563827,2.37e-05,181.93,181.91,30.33196521]
[1734831564024,2.37e-05,181.93,181.92,0.82422723]
[1734831564221,2.37e-05,181.93,181.91,0.82434543]
[1734831564812,2.37e-05,181.93,181.87,30.33196521]
[1734831565014,2.37e-05,181.93,181.85,31.15626901]
[1734831565211,2.37e-05,181.93,181.86,30.33196521]
[1734831565413,2.37e-05,181.93,181.87,0.82446545]
[1734831566707,2.37e-05,181.93,181.8,13.7512]
[1734831566708,3.49567207,181.93,181.8,30.33196521]
[1734831567438,2.37e-05,181.93,181.84,30.33196521]
[1734831567627,2.37e-05,181.93,181.85,0.82454293]
[1734831567812,2.37e-05,181.93,181.86,30.33196521]
[1734831568014,2.37e-05,181.93,181.87,0.82449093]
[1734831568214,2.37e-05,181.93,181.84,30.33196521]
[1734831568418,2.37e-05,181.93,181.85,0.8245524]
[1734831568623,0.74737207,181.93,181.85,0.8245524]
[1734831568944,0.74737207,181.93,181.84,0.82464024]
[1734831569315,2.37e-05,181.93,181.84,0.82464024]
[1734831569514,0.74734837,181.93,181.84,0.82464024]
[1734831569814,22.7482,181.94,181.85,30.33196521]
[1734831570033,22.7482,181.94,181.86,0.82451695]
[1734831570227,0.11190467,181.87,181.86,0.82451695]
[1734831570430,0.11190467,181.87,181.86,0.82456781]
[1734831572233,0.11190467,181.87,181.86,54.93341702]
[1734831573033,4.67e-06,181.87,181.86,72.16101702]
[1734831573226,0.099333,181.89,181.88,23.776884]
[1734831573227,7.229e-05,181.89,181.88,23.776884]
[1734831573428,7.229e-05,181.89,181.88,54.93292692]
[1734831573952,7.229e-05,181.89,181.88,31.15604292]
[1734831574329,7.229e-05,181.89,181.88,0.82407771]
[1734831574653,7.229e-05,181.89,181.87,0.82451505]
[1734831575210,7.229e-05,181.89,181.85,0.82461858]
[1734831575831,7.229e-05,181.89,181.85,31.15658379]
[1734831576757,7.229e-05,181.89,181.85,0.82461858]
[1734831576934,7.229e-05,181.89,181.83,30.33196521]
[1734831577116,7.229e-05,181.89,181.84,0.82466228]
[1734831577518,20.00007229,181.89,181.84,0.82466228]
[1734831577726,20.00007229,181.89,181.82,30.33196521]
[1734831578070,20.00007229,181.89,181.8,30.33196521]
[1734831578346,20.00007229,181.89,181.82,30.33196521]
[1734831578519,7.229e-05,181.89,181.83,31.15661171]
[1734831580129,7.229e-05,181.89,181.83,0.8246465]
[1734831580336,22.74897229,181.89,181.79,30.33196521]
[1734831580541,0.74734837,181.88,181.77,30.33196521]
[1734831580926,1.6127,181.83,181.74,1.50116455]
[1734831581127,0.74734837,181.82,181.74,0.6761776]
[1734831582335,6.086,181.79,181.74,0.6761776]
[1734831582539,20.0,181.76,181.74,0.6761776]
[1734831582757,0.74734837,181.75,181.74,0.6761776]
[1734831583461,20.0,181.71,181.59,30.33196521]
[1734831583637,0.74734837,181.7,181.58,30.33196521]
[1734831583828,20.0,181.66,181.57,30.33196521]
[1734831584024,0.74734837,181.65,181.56,31.00814281]
[1734831584245,0.74734837,181.65,181.56,0.6761776]
[1734831585735,2.7526,181.64,181.56,0.6761776]
[1734831585944,0.74734837,181.63,181.56,0.6761776]
[1734831586145,20.0,181.59,181.56,0.6761776]
[1734831586361,0.74734837,181.58,181.56,0.6761776]
[1734831586856,0.74734837,181.58,181.45,30.33196521]
[1734831587054,24.52423237,181.63,181.45,30.33196521]
[1734831587351,20.0,181.55,181.42,30.63559733]
[1734831587556,0.74734837,181.54,181.44,30.63559733]
[1734831587752,0.74734837,181.54,181.46,30.63559733]
[1734831587959,0.74734837,181.57,181.47,30.63559733]
[1734831588449,2.7532,181.61,181.51,30.63559733]
[1734831588663,0.74734837,181.6,181.51,30.63559733]
[1734831589527,20.0,181.61,181.52,30.63559733]
[1734831589748,6.4787,181.7,181.57,30.63559733]
[1734831589947,0.74734837,181.69,181.59,30.63559733]
[1734831590139,0.11848614,181.6,181.59,30.63559733]
[1734831591029,0.11848614,181.6,181.57,30.63559733]
[1734831591234,0.11848614,181.6,181.56,30.63559733]
[1734831591448,0.11848614,181.6,181.53,30.63559733]
[1734831591650,0.11848614,181.6,181.54,0.82600423]
[1734831591858,0.11848614,181.6,181.52,30.63559733]
[1734831592061,0.11848614,181.6,181.53,0.82609794]
[1734831592262,0.11848614,181.6,181.51,30.63559733]
[1734831592633,0.11848614,181.6,181.5,30.63559733]
[1734831592836,0.11848614,181.6,181.49,30.63559733]
[1734831593058,0.74734837,181.59,181.49,30.63559733]
[1734831593275,0.74734837,181.59,181.44,0.82629709]
[1734831593462,0.74734837,181.59,181.47,30.63559733]
[1734831593765,0.74734837,181.59,181.48,0.82628955]
[1734831593965,3.50074837,181.59,181.46,30.63559733]
[1734831594333,3.50074837,181.59,181.45,30.63559733]
[1734831594534,3.50074837,181.59,181.46,31.46196919]
[1734831595678,3.50074837,181.59,181.47,30.63559733]
[1734831595846,3.50074837,181.59,181.49,30.63559733]
[1734831596166,3.50074837,181.59,181.47,30.63559733]
[1734831596663,3.50074837,181.59,181.42,0.8262662]
[1734831596664,3.50074837,181.59,181.45,30.63559733]
[1734831596878,20.0,181.55,181.46,31.46208097]
[1734831597048,0.74734837,181.54,181.46,31.46208097]
[1734831597248,0.74734837,181.54,181.46,30.63559733]
[1734831597665,0.74734837,181.58,181.48,30.63559733]
[1734831597977,0.11848614,181.6,181.53,30.63559733]
[1734831598284,0.11848614,181.6,181.55,30.63559733]
[1734831598587,0.11848614,181.6,181.59,30.63559733]
[1734831598895,0.11848614,181.6,181.57,30.63559733]
[1734831599080,0.11848614,181.6,181.55,30.63559733]
[1734831599386,0.11848614,181.6,181.53,31.46163408]
[1734831599991,0.11848614,181.6,181.55,30.63559733]
[1734831600206,0.11848614,181.6,181.56,0.82586514]
[1734831600374,0.11848614,181.6,181.53,30.63559733]
[1734831600575,0.11848614,181.6,181.55,30.63559733]
[1734831601392,0.11848614,181.6,181.53,30.63559733]
[1734831601577,0.11848614,181.6,181.54,0.82600486]
[1734831603013,0.11848614,181.6,181.51,30.63559733]
[1734831603306,2.7534,181.59,181.49,30.63559733]
[1734831603594,0.11848614,181.6,181.5,0.82622391]
[1734831604374,2.7534,181.59,181.47,30.63559733]
[1734831604575,0.11848614,181.6,181.51,30.63559733]
[1734831604782,0.11848614,181.6,181.52,0.82603377]
[1734831604980,0.11848614,181.6,181.53,30.63559733]
[1734831605180,0.11848614,181.6,181.54,0.82593863]
[1734831605477,4.01183451,181.6,181.42,0.82595065]
[1734831606102,26.17408871,181.6,181.43,30.63559733]
[1734831606304,20.0,181.56,181.43,30.63559733]
[1734831606504,0.74734837,181.55,181.43,30.63559733]
[1734831606879,20.0,181.52,181.41,30.63559733]
[1734831607098,0.74734837,181.51,181.41,30.63559733]
[1734831607300,20.0,181.52,181.42,0.82659337]
[1734831607598,0.74734837,181.51,181.42,0.82659337]
[1734831608207,0.74734837,181.51,181.39,30.63559733]
[1734831608375,0.74734837,181.51,181.41,30.63559733]
[1734831608575,0.74734837,181.51,181.42,0.82650577]
[1734831608998,20.0,181.52,181.43,30.63559733]
[1734831609297,6.1224,181.55,181.42,0.82650577]
[1734831609298,6.1224,181.55,181.45,30.63559733]
[1734831609497,6.1224,181.55,181.46,0.82625633]
[1734831610102,2.7531,181.61,181.52,30.63559733]
[1734831610304,0.10492548,181.53,181.52,30.63559733]
[1734831610481,0.10492548,181.53,181.49,30.63559733]
[1734831610803,0.10492548,181.53,181.44,30.63559733]
[1734831610988,0.10492548,181.53,181.39,15.3573]
[1734831610989,0.10492548,181.53,181.45,31.46200656]
[1734831611176,0.10492548,181.53,181.48,30.63559733]
[1734831611377,0.10492548,181.53,181.52,30.63559733]
[1734831611800,0.10492548,181.53,181.51,30.63559733]
[1734831612006,0.10492548,181.53,181.52,30.63559733]
[1734831613700,2.548e-05,181.53,181.52,69.01093004]
[1734831613902,6.443e-05,181.54,181.53,23.776884]
[1734831614303,5.727e-05,181.56,181.53,23.776884]
[1734831614602,301.10576372,181.87,181.51,1.5372]
[1734831614603,6.3984,181.81,181.55,126.42338133]
[1734831614801,0.74734837,181.8,181.67,30.63559733]
[1734831615002,3.49754837,181.8,181.67,30.63559733]
[1734831615209,8.99804837,181.8,181.62,30.63559733]
[1734831615391,14.49854837,181.8,181.58,30.63559733]
[1734831615594,0.05106843,181.79,181.57,30.63559733]
[1734831615795,0.74734837,181.78,181.56,30.63559733]
[1734831615994,20.0,181.77,181.58,30.63559733]
[1734831616295,20.0,181.77,181.51,8.0258]
[1734831616296,23.776884,181.75,181.55,30.63559733]
[1734831616503,23.776884,181.71,181.56,0.82580143]
[1734831616700,20.0,181.68,181.57,30.63559733]
[1734831616897,20.0,181.68,181.61,30.63559733]
[1734831617102,0.74734837,181.73,181.62,31.46120798]
[1734831618110,0.74734837,181.76,181.64,30.63559733]
[1734831618297,0.74734837,181.75,181.63,30.63559733]
[1734831619187,0.74734837,181.77,181.64,31.46110098]
[1734831619990,0.74734837,181.77,181.66,30.63559733]
[1734831620197,0.74734837,181.8,181.67,0.82529465]
[1734831620412,0.74734837,181.8,181.68,30.63559733]
[1734831620612,6.3984,181.81,181.72,30.63559733]
[1734831620793,9.1477,181.87,181.74,30.63559733]
[1734831620994,0.74734837,181.86,181.7,30.63559733]
[1734831621803,2.7495,181.85,181.7,30.63559733]
[1734831622003,0.74734837,181.84,181.7,30.63559733]
[1734831622416,0.74734837,181.84,181.71,0.82517753]
[1734831622603,0.74734837,181.84,181.72,30.63559733]
[1734831623004,0.74734837,181.84,181.73,0.82507595]
[1734831623200,6.3984,181.87,181.76,30.63559733]
[1734831623400,0.74734837,181.86,181.77,0.82485453]
[1734831623603,3.49664837,181.86,181.74,30.63559733]
[1734831623788,3.49664837,181.86,181.75,0.82501281]
[1734831624405,20.0,181.84,181.72,30.63559733]
[1734831624613,20.74734837,181.83,181.67,30.63559733]
[1734831624819,2.7499,181.82,181.67,30.63559733]
[1734831625120,0.74734837,181.81,181.65,31.4607501]
[1734831625642,0.74734837,181.81,181.67,30.63559733]
[1734831625932,0.74734837,181.81,181.69,30.63559733]
[1734831625933,20.74734837,181.81,181.69,30.63559733]
[1734831626096,20.74734837,181.81,181.7,0.82517739]
[1734831626297,20.0,181.81,181.71,30.63559733]
[1734831626499,20.0,181.83,181.72,0.82509759]
[1734831626707,0.74734837,181.82,181.72,0.82509759]
[1734831627023,2.7501,181.81,181.69,30.63559733]
[1734831627228,0.74734837,181.8,181.69,30.63559733]
[1734831627396,0.74734837,181.8,181.66,31.46089456]
[1734831629022,0.74734837,181.8,181.68,30.63559733]
[1734831629204,2.7501,181.81,181.69,0.82519388]
[1734831629526,0.74734837,181.82,181.7,30.63559733]
[1734831629723,0.74734837,181.82,181.71,0.82509319]
[1734831629724,3.49724837,181.82,181.71,0.82509319]
[1734831629901,3.49724837,181.82,181.68,30.63559733]
[1734831630101,20.0,181.79,181.66,31.46090123]
[1734831630316,0.10959157,181.72,181.66,31.46090123]
[1734831630517,0.10959157,181.72,181.66,0.8253039]
[1734831631030,0.10959157,181.72,181.65,0.82545309]
[1734831631327,0.10959157,181.72,181.61,0.82547454]
[1734831631328,0.85693994,181.72,181.61,0.82547454]
[1734831631924,0.85693994,181.72,181.62,30.63559733]
[1734831632306,2.7516,181.71,181.62,0.82561504]
[1734831632510,2.7516,181.71,181.55,20.1796]
[1734831632511,0.74734837,181.7,181.58,30.63559733]
[1734831633305,0.74734837,181.7,181.56,31.46137507]
[1734831633526,20.0,181.68,181.56,31.46137507]
[1734831633717,0.74734837,181.67,181.56,31.46137507]
[1734831634535,0.74734837,181.67,181.56,0.82577774]
[1734831634713,6.2818,181.66,181.52,30.63559733]
[1734831634913,0.74734837,181.65,181.54,30.63559733]
[1734831635106,0.74734837,181.65,181.55,0.82591796]
[1734831635627,0.74734837,181.65,181.52,30.63559733]
[1734831635826,20.0,181.63,181.51,0.82591974]
[1734831636031,0.74734837,181.62,181.51,0.82591974]
[1734831636233,0.74734837,181.62,181.5,30.63559733]
[1734831636535,2.7531,181.61,181.5,30.63559733]
[1734831636716,0.74734837,181.6,181.5,30.63559733]
[1734831638535,2.7534,181.59,181.46,30.63559733]
[1734831638717,2.7534,181.59,181.44,30.63559733]
[1734831638718,20.0,181.54,181.44,30.63559733]
[1734831638918,0.74734837,181.53,181.43,30.63559733]
[1734831639314,0.74734837,181.53,181.4,31.46207752]
[1734831639515,0.74734837,181.53,181.4,0.82648019]
[1734831639739,0.74734837,181.53,181.4,31.46207752]
[1734831640537,2.7545,181.52,181.4,31.46207752]
[1734831640737,0.74734837,181.51,181.4,31.46207752]
[1734831641641,2.7548,181.5,181.38,31.31177493]
[1734831641841,0.74734837,181.49,181.38,31.31177493]
[1734831642140,0.74734837,181.49,181.39,31.46231287]
[1734831642715,0.74734837,181.49,181.38,32.13841085]
[1734831643126,6.2818,181.47,181.38,0.6761776]
[1734831643325,20.0,181.44,181.38,0.6761776]
[1734831643619,0.74734837,181.43,181.38,0.6761776]
[1734831644013,20.0,181.44,181.38,0.6761776]